Cogmind - Beta 15 *** ADVENTURER MODE // 2025.09.22 @ 15:13:32 Player: Blind Result: Destroyed by S-10 Pest with Light Assault Rifle Performance ------------- Evolutions (0) 0 Regions Visited (2) 400 Robots Destroyed (21) 105 Value Destroyed (443) 443 Prototype IDs (0) 0 Alien Tech Used (0) 0 Bonus (0) 0 TOTAL SCORE: 948 Bonus ------- None Cogmind --------- Core Integrity 0/250 Matter 386/400 Energy 125/125 System Corruption 6% Temperature Cool (0) Movement Hovering (80) Location -10/Mines Parts ------- > --- POWER (1) -------- Light Ion Engine > --- PROPULSION (2) --- Combat Airjet > --- UTILITY (2) ------ Medium Matter Pod Launcher Guidance Computer > --- WEAPON (2) ------- Light Assault Rifle > --- INVENTORY (5) ---- Light Treads Peak State ------------ > --- POWER ------------ Light Ion Engine > --- PROPULSION ------- Light Treads Combat Airjet > --- UTILITY ---------- Medium Matter Pod Launcher Guidance Computer > --- WEAPON ----------- Light Assault Rifle > --- INVENTORY -------- Light Assault Rifle [Rating: 13] Favorites ----------- Power Light Ion Engine Engine Light Ion Engine Propulsion Light Treads Treads Light Treads Leg Aluminum Leg Hover Unit Combat Airjet Flight Unit Flight Unit Utility Huge Storage Unit Device Improved Heat Sink Storage Huge Storage Unit Processor Launcher Guidance Computer Protection Core Shielding Weapon Medium Laser Energy Gun Medium Laser Ballistic Gun Assault Rifle Ballistic Cannon Light Cannon Special Melee Weapon Datajack Build | -11 -10 -10 ------- Run | Yrd Mat Min Slots Evolved . | . . . Power . | . . . Propulsion . | . . . Utility . | . . . Weapon . | . . . Parts Attached 27 | 7 12 8 Power 3 | 2 . 1 Engine 3 | 2 . 1 Core . | . . . Reactor . | . . . Propulsion 9 | 2 6 1 Treads 3 | 2 1 . Leg 2 | . 2 . Wheel . | . . . Hover 2 | . 1 1 Flight 2 | . 2 . Utility 8 | 1 5 2 Device 1 | . 1 . Storage 5 | 1 3 1 Processor 1 | . . 1 Hackware . | . . . Protection 1 | . 1 . Artifact . | . . . Weapon 7 | 2 1 4 Energy Gun 1 | 1 . . Energy Cannon . | . . . Ballistic Gun 4 | 1 . 3 Ballistic Cannon 1 | . 1 . Launcher . | . . . Special Weapon . | . . . Impact Weapon . | . . . Slashing Weapon . | . . . Piercing Weapon . | . . . Special Melee Weapon 1 | . . 1 Unidentified Prototypes . | . . . Corrupted Parts 1 | . . 1 System Corruption 1 | . . 1 Parts Lost 7 | . . 7 Power 1 | . . 1 Propulsion 1 | . . 1 Utility 2 | . . 2 Weapon 3 | . . 3 Highest Loss Streak 6 | . . 6 To Critical Strikes . | . . . Average Backups 3 | 1 3 3 Power . | . . . Propulsion . | . . . Utility . | . . . Weapon . | . . . Tool/Special . | . . . Unused Backups 5 | 2 3 . Power 1 | . 1 . Propulsion 2 | 2 . . Utility . | . . . Weapon 2 | . 2 . Tool/Special . | . . . Average Slot Usage (%) 77 | . 78 70 Engine 13 | . 14 11 Treads 8 | . 9 4 Leg 3 | . 2 12 Storage 20 | . 22 2 Energy Gun 12 | . 14 2 Ballistic Gun 13 | . 13 11 Ballistic Cannon 1 | . . 5 Peak Build Rating 13 | 6 9 13 Average Rating 5 | 4 5 7 On Entrance 5 | . 6 9 Naked Turns . | . . . Heaviest Build 167 | 14 167 10 Greatest Support 40 | 40 40 20 Greatest Overweight (x) 30 | 4 30 . Average Overweight (x) 3 | . 4 . Largest Inventory Capacity 25 | 8 25 5 Average Capacity 19 | 7 21 5 Most Carried 7 | 5 7 5 Average Carried 3 | 1 3 3 Final Capacity 8 | 8 5 5 Final Carried 4 | 2 4 1 Class Distribution -------------------- 96% | Mutant 3% | Scavenger-Mutant Dominant Class ---------------- Mutant | -10/Materials Mutant | -10/Mines Resources | -11 -10 -10 ----------- Run | Yrd Mat Min Matter Collected 886 | 226 433 227 Remotely . | . . . Salvage Created 603 | . 492 111 Parts 38 | . 28 10 Haulers Intercepted . | . . . Recyclers Shooed 2 | . 2 . Parts Field Recycled . | . . . Retrieved Matter . | . . . Parts Self-Destructed . | . . . Prevented . | . . . Kills | -11 -10 -10 ------- Run | Yrd Mat Min Combat Hostiles Destroyed 17 | . 10 7 Guns 14 | . 10 4 Cannons 3 | . . 3 Classes Destroyed 8 | . 6 2 Worker 1 | . 1 . Tunneler 1 | . 1 . Recycler 1 | . 1 . Watcher 2 | . 2 . Swarmer 8 | . 3 5 Grunt 7 | . 7 . Demolisher 1 | . . 1 Assembled 1 | . . 1 Best Kill Streak 7 | . 7 3 Combat Bots Only 6 | . 6 3 Max Kills in Single Turn 1 | . 1 1 Gunslinging . | . . . Exploded . | . . . Melee . | . . . Uniques/NPCs Destroyed . | . . . Combat | -11 -10 -10 -------- Run | Yrd Mat Min Hostile Shots Fired 148 | . 71 77 Missed 45 | . 18 27 Hits 103 | . 53 50 Melee 4 | . . 4 Projectile 99 | . 53 46 AOE 6 | . . 6 Damage Taken 1260 | . 431 829 Core 255 | . 83 172 Absorbed by Shields . | . . . Redirected to Shielding 2 | . . 2 Ignored by Resistances 296 | . 132 164 Core Remaining (%) 100 | 100 . . Volleys Fired 65 | . 32 33 Largest 2 | . 2 2 Hottest 80 | . 80 80 Shots Fired 97 | . 62 35 Gun 88 | . 61 27 Cannon 9 | . 1 8 Launcher . | . . . Special . | . . . Kinetic 62 | . 30 32 Thermal 35 | . 32 3 Explosive . | . . . Electromagnetic . | . . . Robot Hit Streak 19 | . 19 10 Robot Miss Streak 2 | . 2 1 Penetration Max . | . . . Secondary Targets 2 | . 2 . Max Gunslinging Chain 1 | . 1 . Shots Hit Robots 75 | . 46 29 Core Hits 38 | . 24 14 Critical Kills . | . . . Critical Parts Destroyed 1 | . 1 . Critical Strikes 4 | . 3 1 Burn 2 | . 2 . Destroy 1 | . 1 . Blast 1 | . . 1 Melee Attacks . | . . . Impact . | . . . Slashing . | . . . Piercing . | . . . Sneak Attacks . | . . . Combat Hostiles . | . . . Follow-up Attacks . | . . . Damage Inflicted 884 | . 601 283 Guns 750 | . 584 166 Cannons 117 | . . 117 Explosions . | . . . Melee . | . . . Ramming 17 | . 17 . Kinetic 470 | . 223 247 Thermal 397 | . 361 36 Explosive . | . . . Electromagnetic . | . . . Impact . | . . . Slashing . | . . . Piercing . | . . . Highest Corruption 6 | . . 6 Average Corruption 5 | . . 5 Corruption Purged . | . . . Corruption Blocked . | . . . Effects 4 | . . 4 Energy Discharges 3 | . . 3 Weapon Failures 1 | . . 1 Overload Shots . | . . . Overflow Damage 6 | . . 6 Projectiles 6 | . . 6 Explosions . | . . . Melee . | . . . Knockbacks 2 | . . 2 Impact . | . . . Kinetic 2 | . . 2 Secondary . | . . . Self-Inflicted Damage . | . . . Shots . | . . . Rammed 2 | . 2 . Targets Rammed 3 | . 3 . Kicked . | . . . Crushed 1 | . 1 . Highest Temperature 236 | . 236 2 Average Temperature 81 | . 84 2 Received Heat Transfer 307 | . 267 40 Siege Activations . | . . . Martial Activations . | . . . Shielding Activations . | . . . Robots Disrupted . | . . . Combat Hostiles . | . . . Robots Corrupted . | . . . Combat Hostiles . | . . . Parts Fried . | . . . Impact Corruptions . | . . . Robots Melted . | . . . Combat Hostiles . | . . . Parts Melted 3 | . 2 1 Heat Transferred 1332 | . 1221 111 Parts Sabotaged . | . . . Parts Stolen . | . . . Parts Stripped . | . . . Power Chain Reactions . | . . . Alert | -11 -10 -10 ------- Run | Yrd Mat Min Maximum Alert Level . | . . . Low Security (%) 100 | 100 100 100 Level 1 . | . . . Level 2 . | . . . Level 3 . | . . . Level 4 . | . . . Level 5 . | . . . High Security . | . . . Max Security . | . . . Peak Influence 172 | . 172 70 Initial . | . . . Average 17 | . 17 26 Influence Increases 472 | . 322 150 Destroy 0b10 Robot/C 320 | . 200 120 Destroy 0b10 Robot/NC 25 | . 25 . Destroy Leader 74 | . 44 30 Successful Hack 8 | . 8 . Lose Combat Pursuer 45 | . 45 . Influence Decreases 442 | . 322 120 Time Decay 392 | . 322 70 Lost Part 50 | . . 50 Squads Dispatched 2 | . 2 . Investigation 2 | . 2 . Extermination . | . . . Reinforcement . | . . . Assault . | . . . Garrison . | . . . Intercept . | . . . Searches Triggered . | . . . Construction Impeded . | . . . Haulers Reinforced . | . . . Active Scanning Responses . | . . . Cargo Convoy Interrupts . | . . . Stealth | -11 -10 -10 --------- Run | Yrd Mat Min Distress Signals 2 | . 2 . Communications Jammed . | . . . Distress Signals . | . . . Times Spotted 27 | . 16 11 Peak Tracking Total 8 | . 8 4 Tactical Retreats 1 | . 1 . Traps | -11 -10 -10 ------- Run | Yrd Mat Min Traps Triggered . | . . . Indirectly . | . . . Trap Hack Attempts . | . . . Triggered . | . . . Disarmed . | . . . Reprogrammed . | . . . Reused . | . . . Traps Extracted . | . . . Installed . | . . . Triggered . | . . . Machines | -11 -10 -10 ---------- Run | Yrd Mat Min Machines Disabled . | . . . Max in Single Turn . | . . . Machines Repaired . | . . . Machines Dismantled . | . . . Machines Sabotaged . | . . . Overloaded Fab Kills . | . . . Hacking | -11 -10 -10 --------- Run | Yrd Mat Min Machines Accessed 3 | . 3 . Terminals 3 | . 3 . Fabricators . | . . . Repair Stations . | . . . Recycling Units . | . . . Scanalyzers . | . . . Garrison Access . | . . . Total Hacks 9 | . 9 . Successful 4 | . 4 . Failed 5 | . 5 . Catastrophic 1 | . 1 . Database Lockouts . | . . . Manual . | . . . Terminals 9 | . 9 . Fabricators . | . . . Repair Stations . | . . . Recycling Units . | . . . Scanalyzers . | . . . Garrison Access . | . . . Terminal Hacks 4 | . 4 . Alert Level 1 | . 1 . Dispatch Records 1 | . 1 . Investigation Status 2 | . 2 . Fabricator Hacks . | . . . Repair Station Hacks . | . . . Recycling Unit Hacks . | . . . Scanalyzer . | . . . Garrison Access Hacks . | . . . Unauthorized Hacks . | . . . Terminals . | . . . Fabricators . | . . . Repair Stations . | . . . Recycling Units . | . . . Scanalyzers . | . . . Garrison Access . | . . . Data Cores Recovered . | . . . Used . | . . . Hacking Detections 2 | . 2 . Full Trace Events 2 | . 2 . Feedback Events . | . . . Feedback Blocked . | . . . Robot Schematics Acquired . | . . . Robots Built . | . . . Authchips . | . . . Time . | . . . Total Robot Build Rating . | . . . Part Schematics Acquired . | . . . Parts Built . | . . . Authchips . | . . . Time . | . . . Total Part Build Rating . | . . . Parts Repaired . | . . . Time . | . . . Parts Recycled . | . . . Recycled Matter . | . . . Retrieved Matter . | . . . Retrieved Components . | . . . Parts Scanalyzed . | . . . Part Schematics Acquired . | . . . Parts Damaged . | . . . Bothacking | -11 -10 -10 ------------ Run | Yrd Mat Min Used RIF Installer . | . . . Robots Hacked . | . . . Non-combat . | . . . Combat . | . . . Robot Hacks Applied . | . . . Relay Couplers Released . | . . . Fabnet Peak Effective % . | . . . Robots Rewired . | . . . Allies Hacked . | . . . Hacks Repelled . | . . . Allies | -11 -10 -10 -------- Run | Yrd Mat Min Total Allies . | . . . Largest Group . | . . . Highest-Rated Group . | . . . Highest-Rated Ally . | . . . Total Orders . | . . . Ally Attacks . | . . . Total Damage . | . . . Kills . | . . . Allies Corrupted . | . . . Allies Melted . | . . . Intel | -11 -10 -10 ------- Run | Yrd Mat Min Active Infowar (turns) . | . . . Robot Analysis Total . | . . . Derelict Logs Recovered 1 | . . 1 Drone Launches . | . . . Drone Recoveries . | . . . Exploration | -11 -10 -10 ------------- Run | Yrd Mat Min Turns Passed 2374 | 84 2102 188 Spaces Moved 617 | 52 475 90 Core 78 | 37 41 . Treads 327 | 15 290 22 Legs 124 | . 84 40 Wheels . | . . . Hover 34 | . 6 28 Flight 54 | . 54 . Fastest Speed 50 | 50 117 80 Average Speed 342 | 129 407 117 Slowest Speed 1550 | 250 1550 160 Overloaded Moves . | . . . Propulsion Burnouts . | . . . Robots Hopped . | . . . Potential Cave-ins . | . . . Cave-ins Triggered 1 | . . 1 Exploration Rate (%) 27 | 4 58 20 Regions Visited 2 Branch Regions 1 Pre-discovered Areas . | . . . Known Exits Taken . | . . . Unknown Exits Taken 2 | 1 1 . Scrap Searched . | . . . Spaces Dug . | . . . Terrain Destroyed . | . . . Melee . | . . . Projectile . | . . . AOE . | . . . Terrain Rammed . | . . . Walls Destroyed . | . . . Machines Disabled . | . . . Actions | -11 -10 -10 --------- Run | Yrd Mat Min Total 801 | 70 586 145 Wait 7 | . 7 . Move 615 | 51 474 90 Hop . | . . . Pick Up 41 | 10 25 6 Fast Attach . | . . . Attach 32 | 6 16 10 Detach 8 | . 6 2 Swap 2 | 1 1 . Drop 28 | 2 22 4 Fire 65 | . 32 33 Melee . | . . . Ram . | . . . Kick . | . . . Crush 3 | . 3 . Escape Stasis . | . . . Rewire . | . . . Trap . | . . . Miscellaneous . | . . . Route ------- -11/Scrapyard -10/Materials (discovered 3 exits: [*Mat] / [*Min] / [*Sub]) -10/Mines History --------- Turn | Location | Event 5 | -11/Scrapyard | Discovered new exit (range 15) 85 | -11/Scrapyard | Entered Materials 86 | -10/Materials | Met a group of wandering Federalists 314 | -10/Materials | Build established: Mutant 402 | -10/Materials | Discovered new exit (range 7) 1592 | -10/Materials | Discovered new exit (range 6) 2165 | -10/Materials | Discovered new exit (range 13) 2187 | -10/Materials | Entered Mines 2226 | -10/Mines | Assembled infested the area 2231 | -10/Mines | Assisted by a Guerilla fighting off Assembled 2252 | -10/Mines | Crushed by falling debris 2252 | -10/Mines | Core integrity fell below 50% 2285 | -10/Mines | Core integrity fell below 20% 2290 | -10/Mines | Lost 6 parts (1p1n2u2w) 2360 | -10/Mines | Learned location of 1 exit from Materials 2375 | -10/Mines | Destroyed by S-10 Pest with Light Assault Rifle Last Messages --------------- 02322_ The unstable cave ceiling collapses. 02328_ Acquired Launcher Guidance Computer. 02331_ Acquired Cmb. Airjet. 02335_ Acquired 45 matter. 02336_ K-01 Serf collects debris. 02338_ Acquired 3 matter. 02339_ Acquired 72 matter. 02341_ K-01 Serf collects debris. 02356_ as-85506 destroyed. 02360_ Acquired derelict log, extracted data. Data stored: Materials exits (x1). 02366_ System corrupted: Lgt. Assault Rifle jammed. 02366_ Lgt. Assault Rifle destroyed. 02368_ Integrated Corrupted Lgt. Assault Rifle (+1). 02368_ Complication: System interference. 02368_ Launcher Guidance Computer temporarily disabled. 02374_ S-10 Pest destroyed. Map ----- +----------------------------------------------------+ | ????????????????????# / ### #????????????? | | ????????????????????# # ##????????????? | | ?????????????????? ## ####?????????????? | | ?????????????????##### #### ##??????????????? | | ?????????????????????# ##??# % ###???????? ?? | | ?????????????????????# #???#! ###### ??? | | ?????????????????????# #???# ??? | | ?????????????????????# #??## ??? | | ?????????????????????# #?## ######### ???? | | ?????????????????????# ?## ##?????????????? | | ?????????????????????# ?# "%""#?????????????? | | ?????????????????????# ?# " #?????????????? | | ?????????????????????# ?## % #?????????????? | | ?????????????????????? ??## ##?????????????? | | ?????????????????????? ???## ##??????????????? | | ?????????????????????? ????# ##?##????????????? | | ?????????????????????? ?#### ## ###??????????? | | ?????????????????????# ## #??????????? | | ?????????????????????# ## #?????????? | | ?????????????????????# ## #"$ #????????? | | ?????????????????????# ## ### ?????? | | ?????????????????????# ## #?? #####????? | | ????????????????????? ## #?? ##????????? | | ?????????????????????#s## #?? ##?????????? | | ?????????????????????# ## #??? ##??????????? | | ?????????????????????#@##% #??? #???????????? | | ????????????????# ###%## #??? ???????????? | | ????????????????# [t #???? ??????????? | | ????????????????# s #????## ??????????? | | ????????????????######### ##??????# ??????????? | | ????????????????????????# #???????????????????? | | ????????????????????????# #???????????????????? | | ????????????????????????# #???????????????????? | | ????????????????????????# #???????????????????? | | ????????????????????????# #???????????????????? | | ????????????????????????# #???????????????????? | | ????????????????????????# ????????????????????? | | ????????????????????????# ????????????????????? | | ????????????????????????? ????????????????????? | | ????????????????????????? ????????????????????? | | ????????????????????????? ????????????????????? | | ????????????????????????? ????????????????????? | | ????????????????????????? ????????????????????? | | ??????????????????????????????????????????????? | | ??????????????????????????????????????????????? | | ??????????????????????????????????????????????? | | ??????????????????????????????????????????????? | | ??????????????????????????????????????????????? | | ??????????????????????????????????????????????? | | ??????????????????????????????????????????????? | +----------------------------------------------------+ Best States ------------- Heat Dissipation 39 Energy Generation 10 Energy Capacity 250 Matter Stores 433 Matter Capacity 500 Sight Range 16 Terrain Scan Density 10 Resistance: KI 20 Resistance: TH 20 Resistance: EX 20 Resistance: EM 20 Resistance: I 20 Resistance: S 20 Resistance: P 20 Core Shielding 20 Evasion (%) 55 Launcher Accuracy 20 Recoil Reduction 2 Offensive Hacking 10 Item Schematics ----------------- None Robot Schematics ------------------ None Fabricated ------------ Nothing Repaired ---------- Nothing Alien Tech Used ----------------- None Achievements -------------- Tank Challenges ------------ None Game ------ Seed OvertunedCorruptionSabre Manual? 0 Play Time 00:21:27 Cumulative 19.0 hours Start 2025.09.22 @ 14:55:30 End 2025.09.22 @ 15:13:32 Sessions 1 Manual Loads 0 Difficulty Adventurer Special Mode None Game No. 32 Rogue 22 Adventurer 10 Explorer 0 Win Type - Total 0 Types 0/0/0/0/0/0/0/0/0/0 Lore% 8 Gallery% 18 Achievement% 19 Wizard Run 0 Options --------- Layout 1 ASCII 0 Keyboard 0 Movement Mouse Keybinds 0 Fullscreen 2 Font 24/X11 Map View 50x35 Zoom Use 0% Tactical HUD 1 Map Filters NONE Filters NONE Steam 1 RUN: 7a55172d-7406-4a13-9db1-866441fb92b6